{"text_format":"1","workbook":"xlsx","n_sheets":4,"sheets":["FORM","URL SOURCES","DIARY","lookuptables"],"not_rendered":{"charts":0,"images":0,"macros":1,"external_links":0,"defined_names":0,"comments":0,"pivot_tables":0},"unopened":[],"bounds":{"document_bytes":16777216,"sheet_cells":100000,"rows_first":2000,"rows_last":500,"rows_between":2000,"halvings":0,"cell_chars":16384,"cell_head_chars":4096},"cells_cut":0,"cells_raw":0,"read":"whole","date_system":"1900"}

{"sheet":"FORM","index":0,"n_rows":103,"n_cols":9,"rows_kept":103,"cut":false,"hidden":false,"merged":[[27,5,28,5],[0,0,0,2],[1,0,1,2],[2,0,2,2],[27,1,28,1],[27,2,28,2],[27,3,28,3],[27,4,28,4]]}
["WHAT CAN YOU DO ABOUT CLIMATE CHANGE?"]
["Operation Unite® Climate Change Tool"]
["Operation Unite®, POB 922, Nevada City, CA  95959; 530-478-1260; www.operationunite.co"]
[]
["DIRECTIONS FOR USING THIS SPREADSHEET."]
[null,"Muse over the questions listed below."]
[null,"Explore the general sources of Climate Change and related URLs (see Sources block below)."]
[null,"Prioritize the items on the list below according to immediacy of action (implement within the next); 1 now; 2 within the next six months; 3 within the next year; 4 within the next two years; 5 within the next five years. "]
[null,"Sort the prioritized actions from 1 to 5."]
[null,"Now you have a Climate Change bucket list. Start making changes beginning with No. 1 and working through the priorities."]
[null,"Document your changes with pictures, short videos or audio."]
[null,"Keep a diary (see spreadsheet \"DAIRY\")."]
[null,"Let Operation Unite know about your successes. We will post your success on the Operation Unite website and, possibly, interview you on our YouTube or radio channels."]
[null,null,null,null,null,"ACTION TYPES"]
["Here are some questions to ask yourself.",null,null,null,null,"        1  Eating"]
[null,"What can I do to stay comfortable when summer temperatures really get high?",null,null,null,"        2  Energy Improvement"]
[null,"What can I do to protect my property and neighboring properties from flooding during extreme rain storms?",null,null,null,"        3  Transportation"]
[null,"How can I protect my property from fire?",null,null,null,"        4  Education"]
[null,"How can I anticipate extreme weather?",null,null,null,"        5  Activism"]
[null,"What do I need to do to prepare for big storms?",null,null,null,"        6  Communication"]
[null,"Where can I learn more about Climate Change impacting me directly and also the current world?",null,null,null,"        7  Water"]
[null,"Who should be my network of elected officials and how often should I contact them?",null,null,null,"        8  Emergency"]
[null,"What daily changes do I need to make for reducing the rate of warming?",null,"CONTACT OPERATION UNITE®",null,"        9  Domestic Habits"]
[null,null,null,null,null,"        10  Health"]
[]
[]
[]
[null,"PRIORITY","ACTION","REASON","ACTION TYPE","SOURCE OF INFORMATION"]
[null,null,null,null,null,null,null,"C OR P","TYPE OF ACTION"]
[null,null,"Contact your mayor and ask for an assessment and Climate Change Action Plan.","Create community change that prepares your entire community and help implement it.",{"$f":"VLOOKUP(I30,lookuptables!$A$2:$B$11,2,FALSE)","v":"Activism"},"http://climatecommunication.yale.edu/publications/the-genesis-of-climate-change-activism/",null,"community",5]
[null,null,"Encourage diversification of water sources in your community.","All water supplies have vulnerabilities to being damaged or not available. Campaign with your local water purveyors to have a diversified number of water sources and a conveyance system that is adaptable and flexible. Vulnerability will be substantially lessed with this approach.",{"$f":"VLOOKUP(I31,lookuptables!$A$2:$B$11,2,FALSE)","v":"Activism"},"https://www.epa.gov/arc-x/strategies-climate-change-adaptation",null,"community",5]
[null,null,"Motivate your community, through service clubs, Board of Supervisors, mayor, school districts to develop a climate action plan.","We are all in this together. Groups can make big improvements in your community so get together.",{"$f":"VLOOKUP(I32,lookuptables!$A$2:$B$11,2,FALSE)","v":"Activism"},"http://climatecommunication.yale.edu/publications/the-genesis-of-climate-change-activism/",null,"community",5]
[null,null,"Campaign your electricity/gas utility to switch to clean and renewable power.","Use wind and solar or other power sources that don't have an ongoing greenhouse gas footprint.",{"$f":"VLOOKUP(I33,lookuptables!$A$2:$B$11,2,FALSE)","v":"Activism"},"https://www.climateactioncampaign.org/5fights/clean-energy/",null,"community",5]
[null,null,"Contact your Couty/Borough/Townwhip and ask for an assessment and Climate Change Action Plan.","Create community change that prepares your entire community and help implement it.",{"$f":"VLOOKUP(I34,lookuptables!$A$2:$B$11,2,FALSE)","v":"Activism"},"http://climatecommunication.yale.edu/publications/the-genesis-of-climate-change-activism/",null,"community",5]
[null,null,"Contact your governor and ask for an assessment and Climate Change Action Plan.","Create community change that prepares your entire community and help implement it.",{"$f":"VLOOKUP(I35,lookuptables!$A$2:$B$11,2,FALSE)","v":"Activism"},"http://climatecommunication.yale.edu/publications/the-genesis-of-climate-change-activism/",null,"community",5]
[null,null,"Contact your State Senator and ask for an assessment and Climate Change Action Plan.","Create community change that prepares your entire community and help implement it.",{"$f":"VLOOKUP(I36,lookuptables!$A$2:$B$11,2,FALSE)","v":"Activism"},"http://climatecommunication.yale.edu/publications/the-genesis-of-climate-change-activism/",null,"community",5]
[null,null,"Contact your State Assemblyperson and ask for an assessment and Climate Change Action Plan.","Create community change that prepares your entire community and help implement it.",{"$f":"VLOOKUP(I37,lookuptables!$A$2:$B$11,2,FALSE)","v":"Activism"},"http://climatecommunication.yale.edu/publications/the-genesis-of-climate-change-activism/",null,"community",5]
[null,null,"Contact your Federal Senator and ask for an assessment and Climate Change Action Plan.","Create community change that prepares your entire community and help implement it.",{"$f":"VLOOKUP(I38,lookuptables!$A$2:$B$11,2,FALSE)","v":"Activism"},"http://climatecommunication.yale.edu/publications/the-genesis-of-climate-change-activism/",null,"community",5]
[null,null,"Contact your Federal Assemblyperson and ask for an assessment and Climate Change Action Plan.","Create community change that prepares your entire community and help implement it.",{"$f":"VLOOKUP(I39,lookuptables!$A$2:$B$11,2,FALSE)","v":"Activism"},"http://climatecommunication.yale.edu/publications/the-genesis-of-climate-change-activism/",null,"community",5]
[null,null,"Ask Fereral and State Senators and Assemblypersons for research, development and subsidies for renewable energy.","The science does not have a perfect understanding and new situations are constantly being discovered regarding climate change consequences. It is a work in progress.",{"$f":"VLOOKUP(I40,lookuptables!$A$2:$B$11,2,FALSE)","v":"Activism"},"http://climatecommunication.yale.edu/publications/the-genesis-of-climate-change-activism/",null,"community",5]
[null,null,"Start a tree planting campaign in your community.","Think big. Trees absorb carbon dioxide and emit oxygen. Need a lot more trees to compensate for the increases in carbon dioxide and the absorption of carbon dioxide already present in the atmostphere.",{"$f":"VLOOKUP(I41,lookuptables!$A$2:$B$11,2,FALSE)","v":"Activism"},"http://www.un.org/climatechange/blog/2014/08/plant-planet-billion-tree-campaign/",null,"community",5]
[null,null,"Support community projects for upgrading water supply and stormwater and recycled water.","Some of the responses to a changing climate require a big, expensive effort. Raising our sewer and storm systems is one of these. New treated water pipes is also needed to end the huge loss of water that is happening right now. Bridges and roads along certain areas of our coasts require raising otherwise they will be either underwater or will prevent passage from underneath.",{"$f":"VLOOKUP(I42,lookuptables!$A$2:$B$11,2,FALSE)","v":"Activism"},"https://www.ncbi.nlm.nih.gov/pmc/articles/PMC3262001/",null,"personal",5]
[null,null,"Support water injection projects that fill aquifers.","Our future is filled with extreme weather events both water plenty and water scarce. Flood waters need to be redirected to areas where the groundwater aquifers are being emptied. These aquifers are not going to refill at the rate that people rely on them. We pump way too much water from the ground.",{"$f":"VLOOKUP(I43,lookuptables!$A$2:$B$11,2,FALSE)","v":"Activism"},"https://www.epa.gov/sites/production/files/2016-04/documents/fema_aquifer_storage_recovery_fact_sheet-sept_2015.pdf",null,"personal",5]
[null,null,"Raise bridges near coastal areas.","Some of the responses to a changing climate require a big, expensive effort. Raising our sewer and storm systems is one of these. New treated water pipes is also needed to end the huge loss of water that is happening right now. Bridges and roads along certain areas of our coasts require raising otherwise they will be either underwater or will prevent passage from underneath.",{"$f":"VLOOKUP(I44,lookuptables!$A$2:$B$11,2,FALSE)","v":"Activism"},"http://www.pjstar.com/news/20170606/climate-change-raises-new-risk-are-inland-bridges-too-low",null,"community",5]
[null,null,"Fortify shoreline protection from erosion.","Ocean surges are already happening at a lot greater intensities and frequencies. We don't want our homes and communities to wash away. Stay ahead of this very serious natural disaster.",{"$f":"VLOOKUP(I45,lookuptables!$A$2:$B$11,2,FALSE)","v":"Activism"},"http://www.ecy.wa.gov/climatechange/2012ccrs/coasts.htm",null,"community",5]
[null,null,"Campaign for building \"cool surfaces\" for roads in your community.","Reflecting heat into the atmosphere instead of getting absorbed by the land surface materials will yield lower temperatures at the ground surface which require less power for air conditioning and other detrimental consequences to high temperatures.",{"$f":"VLOOKUP(I46,lookuptables!$A$2:$B$11,2,FALSE)","v":"Activism"},"https://www.epa.gov/cira/climate-action-benefits-roads",null,"community",5]
[null,null,"Video conference or other internet options instead of traveling for business meetings.","You don't have to travel for all business and personal activities. Use less fuel.",{"$f":"VLOOKUP(I47,lookuptables!$A$2:$B$11,2,FALSE)","v":"Communication"},"https://www.scientificamerican.com/article/can-videoconferencing-replace-travel/",null,"personal",6]
[null,null,"Don't leave your refrigerator door open when getting food and drinks.","If your home and business location is efficient on it heating needs, you will be using a lot less fuel to keep it warm and cool.",{"$f":"VLOOKUP(I48,lookuptables!$A$2:$B$11,2,FALSE)","v":"Domestic Habit"},"https://www.energystar.gov/campaign/waysToSave#!card30-GW74",null,"personal",9]
[null,null,"Fix broken items instead of buying a new one.","New products requires energy to produce. Recycle & reuse.",{"$f":"VLOOKUP(I49,lookuptables!$A$2:$B$11,2,FALSE)","v":"Domestic Habit"},"https://www.treehugger.com/green-home/quick-fix-10-things-you-can-repair-under-10-minutes.html",null,"personal",9]
[null,null,"Cover your pots while cooking.","It is more efficient to cover pots while heating your food otherwise the heat generated by your stove will also heat up the room which is not your objective. Be wise. Be efficient. Use less fuel.",{"$f":"VLOOKUP(I50,lookuptables!$A$2:$B$11,2,FALSE)","v":"Domestic Habit"},"https://www.energystar.gov/about/newsroom/the-energy-source/simple_tips_cooking_savings",null,"personal",9]
[null,null,"Actually live in the climate your home is located and only modulate the extreme weather days.","Be more connected with the seasons and put a sweater on in the winter and T-shirts/shirtless blouses in the summer. Uses less electricity.",{"$f":"VLOOKUP(I51,lookuptables!$A$2:$B$11,2,FALSE)","v":"Domestic Habit"},"http://www.greenpeace.org/international/en/campaigns/climate-change/Solutions/What-you-can-do/",null,"personal",9]
[null,null,"Go back to the olden days and dry your clothes on a clothes line.","Don't use the clothes dryer. Use less power.",{"$f":"VLOOKUP(I52,lookuptables!$A$2:$B$11,2,FALSE)","v":"Domestic Habit"},"http://content.time.com/time/specials/2007/environment/article/0,28804,1602354_1603074_1603130,00.html",null,"personal",9]
[null,null,"Build a green home. Have a garden.","Rely less on fertilizers and transportation of your food.",{"$f":"VLOOKUP(I53,lookuptables!$A$2:$B$11,2,FALSE)","v":"Domestic Habit"},"http://www.nwf.org/What-We-Do/Energy-and-Climate/Climate-and-Energy/Reduce-Carbon-Pollution/Gardening-for-Climate-Change.aspx",null,"personal",9]
[null,null,"Only use your dishwasher and washing machine when you have a full load.","These machines use the same amout of power for one load so make it count. Fill up the washers completely before running a load.",{"$f":"VLOOKUP(I54,lookuptables!$A$2:$B$11,2,FALSE)","v":"Domestic Habit"},"https://www.nrdc.org/stories/9-tricks-save-tons-water",null,"personal",9]
[null,null,"Take a shower instead of a bath.","Conserve your water use mean less power to maintain the 24/7 water source by your water purveyor.",{"$f":"VLOOKUP(I55,lookuptables!$A$2:$B$11,2,FALSE)","v":"Domestic Habit"},"https://www.eea.europa.eu/green-tips/take-a-shower-rather-than-a-bath",null,"personal",9]
[null,null,"Don't be a throw away consumer. Reuse things like bottles, packaging, etc.","New products requires energy to produce. Recycle & reuse.",{"$f":"VLOOKUP(I56,lookuptables!$A$2:$B$11,2,FALSE)","v":"Domestic Habit"},"https://www.theguardian.com/environment/2017/mar/13/waste-plastic-food-packaging-recycling-throwaway-culture-dave-hall",null,"personal",9]
[null,null,"Don't waste food. Find a use for everything.","Growing food requires, fertilizer, fuel for farming equipment, fuel for transporting to your local store. Don't waste.",{"$f":"VLOOKUP(I57,lookuptables!$A$2:$B$11,2,FALSE)","v":"Domestic Habit"},"https://www.theguardian.com/environment/2016/apr/07/reducing-food-waste-would-mitigate-climate-change-study-shows",null,"community",9]
[null,null,"Use your car less by walking, ride-sharing, biking or choose not to go out.","Use less fuel.",{"$f":"VLOOKUP(I58,lookuptables!$A$2:$B$11,2,FALSE)","v":"Domestic Habit"},"https://whatsyourimpact.org/fight-climate-change/drive-less",null,"personal",9]
[null,null,"If you drive somewhere, go easy on the gas and brake pedals.","Be more fuel efficient in your car. Less fuel, less burning, less emissions that cause climate warming.",{"$f":"VLOOKUP(I59,lookuptables!$A$2:$B$11,2,FALSE)","v":"Domestic Habit"},"http://www.kcra.com/article/5-things-you-can-do-about-climate-change/9970192",null,"personal",9]
[null,null,"Frequently check your tire air pressure.","More efficient use of car means less fuel, less buringk less emissions that cause climate warming.",{"$f":"VLOOKUP(I60,lookuptables!$A$2:$B$11,2,FALSE)","v":"Domestic Habit"},"http://www.environmenthamilton.org/tonnes/calculator/action.php?Action=10",null,"personal",9]
[null,null,"Don't let the water run in the kitchen, bathroom or while washing the car.","Water and power are connected. Don't waste water means don't waste power.",{"$f":"VLOOKUP(I61,lookuptables!$A$2:$B$11,2,FALSE)","v":"Domestic Habit"},"http://environment.nationalgeographic.com/environment/freshwater/top-ten/",null,"personal",9]
[null,null,"Raise chickens and use food scraps for a portion of their food.","Locally grown food uses less synthetic fertilizers with no transportation. Less fuel, less petroleum, less CO2 footprint.",{"$f":"VLOOKUP(I62,lookuptables!$A$2:$B$11,2,FALSE)","v":"Eating"},"https://www.treehugger.com/green-home/raising-chickens-patriotic-duty-uncle-sam-says-so.html",null,"personal",1]
[null,null,"Eat organic food","Does not use synthetic hydrocarbon fertilizers",{"$f":"VLOOKUP(I63,lookuptables!$A$2:$B$11,2,FALSE)","v":"Eating"},"http://www.onlyorganic.org/5-ways-going-organic-can-affect-climate-change/",null,"personal",1]
[null,null,"Eat less meat in your diet. ","Animal meat creates methane and uses a lot of water",{"$f":"VLOOKUP(I64,lookuptables!$A$2:$B$11,2,FALSE)","v":"Eating"},"https://www.theguardian.com/environment/2014/dec/03/eating-less-meat-curb-climate-change",null,"personal",1]
[null,null,"Buy most of your food locally","Minimal transportation and fuel needed to bring you your food.",{"$f":"VLOOKUP(I65,lookuptables!$A$2:$B$11,2,FALSE)","v":"Eating"},"http://www.iufn.org/wp-content/uploads/2013/08/Making-local-food-work-2010-Local-food-and-climate-change.pdf",null,"personal",1]
[null,null,"Lower your daily calorie intake a little bit. There are many ways to do this.","The less food you eat the less agricultural impact you will have.",{"$f":"VLOOKUP(I66,lookuptables!$A$2:$B$11,2,FALSE)","v":"Eating"},"https://www.chathamhouse.org/sites/files/chathamhouse/publications/research/CHHJ3820%20Diet%20and%20climate%20change%2018.11.15_WEB_NEW.pdf",null,"personal",1]
[null,null,"Become climate literate.","If you know what is happening, you will do the right thing.",{"$f":"VLOOKUP(I67,lookuptables!$A$2:$B$11,2,FALSE)","v":"Education"},"https://www.climate.gov/teaching/essential-principles-climate-literacy/essential-principles-climate-literacy",null,"personal",4]
[null,null,"Educate yourself on Climate Change by reading IPCC docuemnts.","You need to know the truth from acurate, verifiable resources.",{"$f":"VLOOKUP(I68,lookuptables!$A$2:$B$11,2,FALSE)","v":"Education"},"https://www.ipcc.ch/publications_and_data/publications_and_data.shtml",null,"community",4]
[null,null,"Create school Climate Change projects for K-12.","Awareness of our children is needed more that adults because the entire burden will be on them. Awareness yields action.",{"$f":"VLOOKUP(I69,lookuptables!$A$2:$B$11,2,FALSE)","v":"Education"},"https://climatekids.nasa.gov/menu/teach/",null,"community",4]
[null,null,"Share this list.","Operation Unite want to share your successes with everyone because you are a pillar in our community.",{"$f":"VLOOKUP(I70,lookuptables!$A$2:$B$11,2,FALSE)","v":"Education"},"www.operationunite.co",null,"personal",4]
[null,null,"Make your properties defensible against fire and floods.","It's a matter of time so create a fire safe and defensible area if you are in a high fire risk area and develop the appropriate responses to protecting against flood if you are in a high flood risk area.",{"$f":"VLOOKUP(I71,lookuptables!$A$2:$B$11,2,FALSE)","v":"Emergency"},"http://www.washington-apa.org/assets/docs/2015/Ten_Big_Ideas/October_Revisions/disaster_planning_11.4.pdf",null,"personal",8]
[null,null,"Learn to adapt to extreme weather in your area. ","You will need to become more adaptive and flexible when extreme weather hits. Safety is number one.",{"$f":"VLOOKUP(I72,lookuptables!$A$2:$B$11,2,FALSE)","v":"Emergency"},"https://www.c2es.org/publications/extreme-weather-and-climate-change",null,"personal",8]
[null,null,"Flood proof your property.",null,{"$f":"VLOOKUP(I73,lookuptables!$A$2:$B$11,2,FALSE)","v":"Emergency"},"https://www.nrdc.org/stories/7-ways-flood-proof-your-house",null,null,8]
[null,null,"Responding to heat stroke.","Extreme heat will be more common in our near future. Some cities don't have air conditioning.",{"$f":"VLOOKUP(I74,lookuptables!$A$2:$B$11,2,FALSE)","v":"Emergency"},"https://www.epa.gov/sites/production/files/2016-10/documents/extreme-heat-guidebook.pdf",null,null,8]
[null,null,"Don't leave an empty roof rack on your car.","Higher mileage can be gained therefore lower fuel consumption.",{"$f":"VLOOKUP(I75,lookuptables!$A$2:$B$11,2,FALSE)","v":"Energy improvement"},"http://newscenter.lbl.gov/2016/04/25/roof-racks-drag-fuel-economy/",null,"personal",2]
[null,null,"Plant trees on your property.","Trees absorb carbon dioxide and emit oxygen. Need a lot more trees to compensate for the increases in carbon dioxide and the absorption of carbon dioxide already present in the atmostphere.",{"$f":"VLOOKUP(I76,lookuptables!$A$2:$B$11,2,FALSE)","v":"Energy improvement"},"https://www.theguardian.com/environment/2012/nov/29/planting-trees-climate-change",null,"personal",2]
[null,null,"Get partially or totally off the electronic grid.","Don't rely on coal, natural gas or other CO2 creating fuels. Solar and wind are great.",{"$f":"VLOOKUP(I77,lookuptables!$A$2:$B$11,2,FALSE)","v":"Energy improvement"},"http://thebulletin.org/does-going-%E2%80%9C-grid%E2%80%9D-actually-help-climate8191",null,"personal",2]
[null,null,"Install a solar hot water heater.","Use less power. Rely on solar heat to raise water temperature so you don't minimally need electricity or natural gas.",{"$f":"VLOOKUP(I78,lookuptables!$A$2:$B$11,2,FALSE)","v":"Energy improvement"},"https://www.fremontgreenchallenge.org/action/install-solar-hot-water-system",null,"personal",2]
[null,null,"Change out your light bulbs to high efficiency LED.","Uses less electricity so less coal and natural gas.",{"$f":"VLOOKUP(I79,lookuptables!$A$2:$B$11,2,FALSE)","v":"Energy improvement"},"http://www.independent.co.uk/environment/a-bright-idea-how-changing-light-bulbs-helps-beat-global-warming-and-cut-bills-406494.html",null,"personal",2]
[null,null,"Water and energy are connected. Use less electricity,  overall.","Conserve your water use mean less power to maintain the 24/7 water source by your water purveyor.",{"$f":"VLOOKUP(I80,lookuptables!$A$2:$B$11,2,FALSE)","v":"Energy improvement"},"http://www.water.ca.gov/climatechange/water-energy.cfm",null,"personal",2]
[null,null,"Power down your computer and other equipment when not using it at work and home.","Use less water so less power.",{"$f":"VLOOKUP(I81,lookuptables!$A$2:$B$11,2,FALSE)","v":"Energy improvement"},"https://19january2017snapshot.epa.gov/climatechange/what-you-can-do-office_.html",null,"personal",2]
[null,null,"Weather proof your home by adding insulations on walls and ceilings.","If your home and business location is efficient on it heating needs, you will be using a lot less fuel to keep it warm and cool.",{"$f":"VLOOKUP(I82,lookuptables!$A$2:$B$11,2,FALSE)","v":"Energy improvement"},"http://www.yourhome.gov.au/housing/adapting-climate-change",null,"personal",2]
[null,null,"Weather proof your home by injecting foam into window frames.","If your home and business location is efficient on it heating needs, you will be using a lot less fuel to keep it warm and cool.",{"$f":"VLOOKUP(I83,lookuptables!$A$2:$B$11,2,FALSE)","v":"Energy improvement"},"http://www.mygreenlife.com.au/categories/house/actions/insulate-shade-and-weatherproof-your-house/",null,"personal",2]
[null,null,"Weather proof you home by insulating all electrical outlets.","If your home and business location is efficient on it heating needs, you will be using a lot less fuel to keep it warm and cool.",{"$f":"VLOOKUP(I84,lookuptables!$A$2:$B$11,2,FALSE)","v":"Energy improvement"},"http://www.greenpeace.org/international/en/campaigns/climate-change/Solutions/What-you-can-do/",null,"personal",2]
[null,null,"Weather proof your home by adding storm doors and windows to your home.","If your home and business location is efficient on it heating needs, you will be using a lot less fuel to keep it warm and cool.",{"$f":"VLOOKUP(I85,lookuptables!$A$2:$B$11,2,FALSE)","v":"Energy improvement"},"https://www.carbonbrief.org/how-climate-ready-is-your-house",null,"personal",2]
[null,null,"Unplug or turn off electrical strips and electronics that are not being used.","Use less power.  ",{"$f":"VLOOKUP(I86,lookuptables!$A$2:$B$11,2,FALSE)","v":"Energy improvement"},"http://www.threeactionsproject.org/Actions/Unplug-Appliances-When-Not-In-Use.php",null,"personal",2]
[null,null,"Build a food cellar to store foods that require a cool temperature w/o electricity","Less power needed for refrigeration and more space for storing locally grown foods.",{"$f":"VLOOKUP(I87,lookuptables!$A$2:$B$11,2,FALSE)","v":"Energy improvement"},"https://www.treehugger.com/kitchen-design/get-back-your-roots-groundfridge-prefab-root-cellar.html",null,"personal",2]
[null,null,"Build a section of your home under ground (hot season use).","Less power is needed when you adapt your daily activities with a consistent, comfortable temperature provided by underground rooms. You're more comfortable too.",{"$f":"VLOOKUP(I88,lookuptables!$A$2:$B$11,2,FALSE)","v":"Energy improvement"},"https://baileylineroad.com/canadian-innovation-makes-finishing-a-basement-with-subfloors-better/",null,"personal",2]
[null,null,"Remodel your basement for more varied uses like bedrooms and entertainment.","Less power is needed when you adapt your daily activities with a consistent, comfortable temperature provided by underground rooms. You're more comfortable too.",{"$f":"VLOOKUP(I89,lookuptables!$A$2:$B$11,2,FALSE)","v":"Energy improvement"},"http://www.environment.act.gov.au/__data/assets/pdf_file/0008/914696/ACT-Climate-Change-Adaptation-Strategy.pdf",null,"personal",2]
[null,null,"Use fans instead of air conditioners.","Uses less electricity so less coal and natural gas.",{"$f":"VLOOKUP(I90,lookuptables!$A$2:$B$11,2,FALSE)","v":"Energy improvement"},"https://www.terrapass.com/instead-of-air-conditioning-use-fans",null,"personal",2]
[null,null,"Frequently clean and replace filters on your furnaces and air conditioners.","If your system is more efficiently run, it will use less power.",{"$f":"VLOOKUP(I91,lookuptables!$A$2:$B$11,2,FALSE)","v":"Energy improvement"},"https://www.energystar.gov/index.cfm?c=heat_cool.pr_hvac",null,"personal",2]
[null,null,"Wrap your water heater in insulation.","If your system is more efficiently run, it will use less power.",{"$f":"VLOOKUP(I92,lookuptables!$A$2:$B$11,2,FALSE)","v":"Energy improvement"},"https://energy.gov/energysaver/projects/savings-project-insulate-your-water-heater-tank",null,"personal",2]
[null,null,"Defrost old refrigerator and freezer, regularly.","If your system is more efficiently run, it will use less power.",{"$f":"VLOOKUP(I93,lookuptables!$A$2:$B$11,2,FALSE)","v":"Energy improvement"},"http://www.toptenuk.org/how-to-use-a-fridge-freezer-efficiently",null,"personal",2]
[null,null,"Replace single-glazed windows with double-glazed windows.","If your home and business location is efficient on it heating needs, you will be using a lot less fuel to keep it warm and cool.",{"$f":"VLOOKUP(I94,lookuptables!$A$2:$B$11,2,FALSE)","v":"Energy improvement"},"https://energy.gov/energysaver/energy-efficient-windows",null,"personal",2]
[null,null,"Use less hot water.","Conserve your water use mean less power to maintain the 24/7 water source by your water purveyor.",{"$f":"VLOOKUP(I95,lookuptables!$A$2:$B$11,2,FALSE)","v":"Energy improvement"},"http://www.gracelinks.org/blog/1514/going-green-12-ways-to-reduce-your-impact-on-the-food-water",null,"personal",2]
[null,null,"Learn natural remedies for common illnesses and discomforts. ","Warm weather will increase health issues that impact hygiene, insect influences, virus and bacterial growth and other water related problems.",{"$f":"VLOOKUP(I96,lookuptables!$A$2:$B$11,2,FALSE)","v":"Health"},"https://www.boldsky.com/health/wellness/2015/twelve-home-remedies-for-common-ailments-due-to-seasonal-changes-063739.html",null,"personal",10]
[null,null,"Use public transportation instead of your car.","Use less fuel.",{"$f":"VLOOKUP(I97,lookuptables!$A$2:$B$11,2,FALSE)","v":"Transortation"},"https://www.transit.dot.gov/sites/fta.dot.gov/files/docs/PublicTransportationsRoleInRespondingToClimateChange2010.pdf",null,"personal",3]
[null,null,"Reduce your air travel time.","Use less fuel. Air craft uses an enormous amount of fuel and discharges huge amounts of exhaust.",{"$f":"VLOOKUP(I98,lookuptables!$A$2:$B$11,2,FALSE)","v":"Transortation"},"http://www.davidsuzuki.org/issues/climate-change/science/climate-change-basics/air-travel-and-climate-change/",null,"personal",3]
[null,null,"Keep your car tuned up.","Higher mileage can be gained therefore lower fuel consumption.",{"$f":"VLOOKUP(I99,lookuptables!$A$2:$B$11,2,FALSE)","v":"Transortation"},"https://johncarlosbaez.wordpress.com/2011/05/27/the-one-best-thing-everyone-could-do-to-slow-down-climate-change/",null,"personal",3]
[null,null,"Replace old toilets with efficient low flush (1.1 gpf)","Use less water so less power.",{"$f":"VLOOKUP(I100,lookuptables!$A$2:$B$11,2,FALSE)","v":"Water"},"http://www.climateready.com.au/cb_pages/action_reduce_the_amount_of_water_used_by_your_toilet.php",null,"personal",7]
[null,null,"Replace shower heads with the low flow, high comfort.","Use less water so less power.",{"$f":"VLOOKUP(I101,lookuptables!$A$2:$B$11,2,FALSE)","v":"Water"},"https://ir.library.oregonstate.edu/xmlui/bitstream/handle/1957/20080/CEO4bClimateGuide.pdf?sequence=4",null,"personal",7]
[null,null,"Construct rainwater harvesting to your home.","Supplement your outdoor (and where it is legal) indoor water use with rain water. You may not always be able to rely on piped water.",{"$f":"VLOOKUP(I102,lookuptables!$A$2:$B$11,2,FALSE)","v":"Water"},"http://www.arcsa.org/?gclid=Cj0KCQjwnubLBRC_ARIsAASsNNm3nKnAzNKJDijy5f6DJlMQZifpELRx8IbfzdwKdKA6VxC6j68-x-8aAkkoEALw_wcB",null,"personal",7]
[null,null,"Regrade your property to increase rainwater percolation into the ground.","We need to fill the groundwater aquifers more than they do naturally, especially in areas that you are using groundwater wells. Our overall impact to the aquifer will then be less. Make sure that good quality water is allowed to percolate into the ground.",{"$f":"VLOOKUP(I103,lookuptables!$A$2:$B$11,2,FALSE)","v":"Water"},"http://www.sswm.info/content/surface-groundwater-recharge",null,"personal",7]

{"sheet":"URL SOURCES","index":1,"n_rows":17,"n_cols":2,"rows_kept":17,"cut":false,"hidden":false,"merged":[]}
["GENERAL SOURCES RELATED TO CLIMATE CHANGE OTHER SUPPORTIVE INFORMATION FOR YOUR HOUSEHOLD"]
[]
["Founded in 2009 by Stephen Baker, Operation Unite® is a hands – on, results - oriented, capacity building initiative that engages Stakeholders and the Impacted Public in solving water problems thereby building Public responsibility for generated projects.\n\nOur goal is to bring specific communities and the relevant agencies into alignment through the development of common values, collaborative relationships and a shared community plan to achieve articulated goals designed to address the challenges and problems they face. We bring people together to solve water issues through outreach programs like groundwater management and monitoring, awareness campaigns with the public and stakeholders regarding Climate Change, Groundwater Replenishment, Well Fracking,  Rain Water Harvesting, Water Infrastructure, Gray Water, Flood Prevention and Response, Water Recycling, Tunamis Response, Water Reuse, Water shortage, Water Conservation, Water quality, Groundwater management, Sea Level Rise and Homeland Security. Contact Operation Unite at stevebaker@operationunite.co or 530-478-1260.\n","www.operationunite.co"]
["The Intergovernmental Panel on Climate Change (IPCC) is the international body for assessing \nthe science related to climate change. The IPCC was set up in 1988 by the World Meteorological \nOrganization (WMO) and United Nations Environment Programme (UNEP) to provide policymakers \nwith regular assessments of the scientific basis of climate change, its impacts and future risks, and \noptions for adaptation and mitigation. ","http://www.ipcc.ch/"]
["The U.S. Drought Monitor, established in 1999, is a weekly map of drought conditions that is produced jointly by the National Oceanic and Atmospheric Administration, the U.S. Department of Agriculture, and the National Drought Mitigation Center (NDMC) at the University of Nebraska-Lincoln. The U.S. Drought Monitor website is hosted and maintained by the NDMC.","http://droughtmonitor.unl.edu/"]
["From daily weather forecasts, severe storm warnings, and climate monitoring to fisheries management, coastal restoration and supporting marine commerce, NOAA’s products and services support economic vitality and affect more than one-third of America’s gross domestic product. NOAA’s dedicated scientists use cutting-edge research and high-tech instrumentation to provide citizens, planners, emergency managers and other decision makers with reliable information they need when they need it.","http://www.noaa.gov/"]
["The USGS serves the Nation by providing reliable scientific information to describe and understand the Earth; minimize loss of life and property from natural disasters; manage water, biological, energy, and mineral resources; and enhance and protect our quality of life.","https://www.usgs.gov/"]
["The mission of EPA is to protect human health and the environment. EPA's purpose is to ensure that: all Americans are protected from significant risks to human health and the environment where they live, learn and work; national efforts to reduce environmental risk are based on the best available scientific information; federal laws protecting human health and the environment are enforced fairly and effectively; environmental protection is an integral consideration in U.S. policies concerning natural resources, human health, economic growth, energy, transportation, agriculture, industry, and international trade, and these factors are similarly considered in establishing environmental policy; all parts of society -- communities, individuals, businesses, and state, local and tribal governments -- have access to accurate information sufficient to effectively participate in managing human health and environmental risks; environmental protection contributes to making our communities and ecosystems diverse, sustainable and economically productive; and the United States plays a leadership role in working with other nations to protect the global environment.","https://www.epa.gov/"]
["The American Red Cross prevents and alleviates human suffering in the face of emergencies by mobilizing the power of volunteers and the generosity of donors.​","http://www.redcross.org/?scode=RSG00000E017&gclid=Cj0KCQjw--DLBRCNARIsAFIwR243Ii8VD_ELxp82L-HqgaYxHr1EdQEl3NwUnhAiyFuNvhjqzZKhZ-AaAu5REALw_wcB&gclsrc=aw.ds&dclid=CMy7qfTHp9UCFZaOfgodoxILJA"]
["The Salvation Army, an international movement, is an evangelical part of the universal Christian church. Its message is based on the Bible. Its ministry is motivated by the love of God. Its mission is to preach the gospel of Jesus Christ and to meet human needs in His name without discrimination.","https://give.salvationarmyusa.org/site/SPageNavigator/national_donation_form.html?utm_source=Google&utm_medium=cpc&utm_campaign=Google:RedKettleWestern-Brand:Western:California:Sacramento/Stockton/Modesto:Search:Text&cm_mmc=Google-_-Google:RedKettleWestern-Brand:Western:California:Sacramento/Stockton/Modesto:Search:Text-_-Salvation-Army-Brand-_-salvation-army&cm_mmca1=USW&cm_mmca2=Sacramento-Stockton-Modesto&cm_mmca3=Prospecting&gclid=Cj0KCQjw--DLBRCNARIsAFIwR26SKCsOonb4aXaw42sltbH9ZFjmzkURPsHE8NzX0qvfMmKQ8j5Lo_UaAl7pEALw_wcB"]
["United States Department of Agriculture - Groundwater Stewardship","https://www.fs.fed.us/geology/groundwater.php"]
["Drought.gov aims to provide a one-stop shop for current, reliable, and useful information and resources related to drought. We value your feedback. Let us know how you think drought.gov is serving you, how you use drought-related information in decision making, and/or what other resources you would like to see available through drought.gov.","https://www.drought.gov/drought/"]
["Meet the Challenges of a Changing Climate; Find information and tools to help you understand and address your climate risks.","https://toolkit.climate.gov/"]
["The Climate Literacy and Energy Awareness Network (CLEAN) Portal was launched in 2010 as a National Science Digital Library (NSDL) Pathways project. It is led by the science education expertise of TERC, the Cooperative Institute for Research in Environmental Science (CIRES) at the University of Colorado Boulder, and the Science Education Resource Center (SERC) at Carleton College. As of 2012, CLEAN has been syndicated to NOAA's climate.gov portal. CLEAN's primary effort is to steward the collection of climate and energy science educational resources and to support a community of professionals committed to improving climate and energy literacy.","https://cleanet.org/index.html"]
["The Pacific Institute is a global water think tank that provides science-based thought leadership with active outreach to influence local, national, and international efforts in developing sustainable water policies. Since 1987, we have worked with everyone from Fortune 500 companies to disenfranchised communities to create and advance sustainable water policies and deliver meaningful results","http://pacinst.org/"]
["Western U.S. Climate Historical Summaries","https://wrcc.dri.edu/Climsum.html"]
["The Alliance for Water Efficiency is a stakeholder-based nonprofit organization dedicated to the efficient and sustainable use of water. Headquartered in Chicago, the Alliance serves as a North American advocate for water efficient products and programs, and provides information and assistance on water conservation efforts. A diverse Board of Directors governs the organization and has adopted a set of guiding principles and strategic plan. ","http://www.allianceforwaterefficiency.org/default.aspx"]

{"sheet":"DIARY","index":2,"n_rows":10,"n_cols":5,"rows_kept":10,"cut":false,"hidden":false,"merged":[[6,2,6,3],[0,2,0,3],[1,2,1,3],[2,2,2,3],[3,2,3,3],[4,2,4,3],[5,2,5,3]]}
["Your Name:",null,"Operation Unite"]
["Street Address:",null,"POB 922, Nevada City, California  95959"]
["City:",null,"stevebaker@operationunite.co"]
["State:",null,"530-478-1260"]
["Zip Code:",null,"www.operationunite.co"]
["Phone No.:",null,"Operation Unite Water YouTube channel"]
["Email:",null,"Operation Unite Facebook Page"]
[]
["ACTION DIARY"]
["Date","Action Taken","Insight Gained","Design of Plan to Achieve Insight","Comment"]

{"sheet":"lookuptables","index":3,"n_rows":11,"n_cols":3,"rows_kept":11,"cut":false,"hidden":false,"merged":[[0,0,0,1]]}
["TYPE OF ACTION",null,"PRIORITIES"]
[1,"Eating",1]
[2,"Energy improvement",2]
[3,"Transortation",3]
[4,"Education",4]
[5,"Activism",5]
[6,"Communication"]
[7,"Water"]
[8,"Emergency"]
[9,"Domestic Habit"]
[10,"Health"]